[Event "*** Titled Tuesday Blitz"]
[Site "Chess.com"]
[Date "2020.05.05"]
[Round "10"]
[White "GMartin_Petrov"]
[Black "heartofatiger"]
[Result "1-0"]
[WhiteElo "2610"]
[BlackElo "2453"]
[TimeControl "180+1"]
[EndTime "11:55:59 PDT"]
[Termination "GMartin_Petrov won by resignation"]

1. e4 {[%clk 0:03:00.9]} 1... Nf6 {[%clk 0:02:59.5]} 2. e5 {[%clk 0:03:00.5]}
2... Nd5 {[%clk 0:02:59.5]} 3. d4 {[%clk 0:03:01.2]} 3... d6 {[%clk 0:03:00]} 4.
c4 {[%clk 0:03:00.7]} 4... Nb6 {[%clk 0:03:00]} 5. f4 {[%clk 0:03:01.4]} 5... g6
{[%clk 0:02:58.7]} 6. Nc3 {[%clk 0:02:58.9]} 6... Bg7 {[%clk 0:02:59.3]} 7. Be3
{[%clk 0:02:54.2]} 7... O-O {[%clk 0:02:59.6]} 8. Be2 {[%clk 0:02:53.9]} 8...
Be6 {[%clk 0:02:48]} 9. b3 {[%clk 0:02:50.4]} 9... dxe5 {[%clk 0:02:45]} 10.
dxe5 {[%clk 0:02:36.4]} 10... Nc6 {[%clk 0:02:38]} 11. Nf3 {[%clk 0:02:33.7]}
11... f6 {[%clk 0:02:37.7]} 12. O-O {[%clk 0:01:35.7]} 12... Qxd1 {[%clk
0:02:30.6]} 13. Raxd1 {[%clk 0:01:33.9]} 13... fxe5 {[%clk 0:02:31]} 14. Ng5
{[%clk 0:01:32.7]} 14... Bf5 {[%clk 0:02:27]} 15. Nb5 {[%clk 0:01:30.5]} 15...
exf4 {[%clk 0:02:10.3]} 16. Bxf4 {[%clk 0:01:29.4]} 16... e5 {[%clk 0:02:09.6]}
17. Be3 {[%clk 0:01:28]} 17... h6 {[%clk 0:02:04.9]} 18. Nf3 {[%clk 0:01:21]}
18... Rf7 {[%clk 0:02:00.3]} 19. c5 {[%clk 0:01:19.7]} 19... Nc8 {[%clk
0:01:54.2]} 20. Bc4 {[%clk 0:01:19.4]} 20... a6 {[%clk 0:01:44]} 21. Nxc7 {[%clk
0:01:18.8]} 21... Rb8 {[%clk 0:01:38.6]} 22. Nh4 {[%clk 0:01:16.6]} 1-0

[Event "*** Titled Tuesday Blitz"]
[Site "Chess.com"]
[Date "2020.05.05"]
[Round "10"]
[White "GoValya"]
[Black "canary2016"]
[Result "1-0"]
[WhiteElo "2166"]
[BlackElo "1917"]
[TimeControl "180+1"]
[EndTime "11:56:14 PDT"]
[Termination "GoValya won by checkmate"]

1. d4 {[%clk 0:03:00.9]} 1... d5 {[%clk 0:02:59.4]} 2. Nf3 {[%clk 0:03:00.9]}
2... Nf6 {[%clk 0:02:58]} 3. g3 {[%clk 0:03:01.1]} 3... c6 {[%clk 0:02:57.3]} 4.
Bg2 {[%clk 0:03:01.3]} 4... Bf5 {[%clk 0:02:56.7]} 5. O-O {[%clk 0:03:00.9]}
5... e6 {[%clk 0:02:57]} 6. c4 {[%clk 0:03:01]} 6... Be7 {[%clk 0:02:55.4]} 7.
Nc3 {[%clk 0:03:01.1]} 7... O-O {[%clk 0:02:55.2]} 8. Nd2 {[%clk 0:03:01.1]}
8... Nbd7 {[%clk 0:02:52.9]} 9. e4 {[%clk 0:03:01.2]} 9... dxe4 {[%clk
0:02:52.1]} 10. Ndxe4 {[%clk 0:03:01.3]} 10... Nxe4 {[%clk 0:02:52.3]} 11. Nxe4
{[%clk 0:03:01.5]} 11... Nf6 {[%clk 0:02:52.4]} 12. Nc3 {[%clk 0:03:01.5]} 12...
Qd7 {[%clk 0:02:48.4]} 13. h3 {[%clk 0:02:49.7]} 13... Rad8 {[%clk 0:02:47.7]}
14. Be3 {[%clk 0:02:49.6]} 14... Rfe8 {[%clk 0:02:38.1]} 15. Qa4 {[%clk
0:02:48]} 15... b6 {[%clk 0:02:36.9]} 16. Bxc6 {[%clk 0:02:46]} 16... Qc7 {[%clk
0:02:25.3]} 17. Bxe8 {[%clk 0:02:45.1]} 17... Bxh3 {[%clk 0:02:24.8]} 18. Bc6
{[%clk 0:02:27.5]} 18... Bxf1 {[%clk 0:02:22.7]} 19. Rxf1 {[%clk 0:02:27]} 19...
Bd6 {[%clk 0:02:08.6]} 20. Bg2 {[%clk 0:02:19.6]} 20... Ng4 {[%clk 0:02:06]} 21.
Nb5 {[%clk 0:02:13.4]} 21... Qb8 {[%clk 0:02:01.6]} 22. Qxa7 {[%clk 0:02:09.2]}
22... Qxa7 {[%clk 0:01:56.9]} 23. Nxa7 {[%clk 0:02:08.2]} 23... Nxe3 {[%clk
0:01:56.9]} 24. fxe3 {[%clk 0:02:08]} 24... Bxg3 {[%clk 0:01:56.8]} 25. Nc6
{[%clk 0:02:07.1]} 25... Ra8 {[%clk 0:01:54.8]} 26. Ne7+ {[%clk 0:02:06.8]}
26... Kf8 {[%clk 0:01:54.3]} 27. Bxa8 {[%clk 0:02:06.5]} 27... Kxe7 {[%clk
0:01:53.3]} 28. b4 {[%clk 0:02:06.2]} 28... Bd6 {[%clk 0:01:52.8]} 29. c5 {[%clk
0:02:06]} 29... bxc5 {[%clk 0:01:52.8]} 30. dxc5 {[%clk 0:02:05.5]} 30... Be5
{[%clk 0:01:50.4]} 31. b5 {[%clk 0:02:04.7]} 31... f6 {[%clk 0:01:49.2]} 32. b6
{[%clk 0:02:02.9]} 32... Kd7 {[%clk 0:01:47.9]} 33. c6+ {[%clk 0:02:02.8]} 33...
Kc8 {[%clk 0:01:47.4]} 34. c7 {[%clk 0:01:59.3]} 34... Bd6 {[%clk 0:01:46.5]}
35. Rc1 {[%clk 0:01:57.2]} 35... Be5 {[%clk 0:01:28.4]} 36. b7+ {[%clk
0:01:55.2]} 36... Kd7 {[%clk 0:01:29.3]} 37. c8=Q+ {[%clk 0:01:55.3]} 37... Ke7
{[%clk 0:01:28.7]} 38. b8=Q {[%clk 0:01:53]} 38... Kf7 {[%clk 0:01:27.6]} 39.
Qe8# {[%clk 0:01:52]} 1-0

[Event "*** Titled Tuesday Blitz"]
[Site "Chess.com"]
[Date "2020.05.05"]
[Round "10"]
[White "Aureliano-Buendia"]
[Black "Fighter008"]
[Result "1-0"]
[WhiteElo "2429"]
[BlackElo "2545"]
[TimeControl "180+1"]
[EndTime "11:56:16 PDT"]
[Termination "Aureliano-Buendia won by resignation"]

1. d4 {[%clk 0:03:00.7]} 1... Nf6 {[%clk 0:02:59.5]} 2. c4 {[%clk 0:02:58.7]}
2... g6 {[%clk 0:02:58.9]} 3. Nc3 {[%clk 0:02:58.4]} 3... Bg7 {[%clk 0:02:58.9]}
4. e4 {[%clk 0:02:59.1]} 4... d6 {[%clk 0:02:58.9]} 5. Be2 {[%clk 0:02:58.9]}
5... O-O {[%clk 0:02:58.9]} 6. Bg5 {[%clk 0:02:59.6]} 6... c5 {[%clk 0:02:54.3]}
7. d5 {[%clk 0:02:59.3]} 7... e6 {[%clk 0:02:54.5]} 8. Qd2 {[%clk 0:02:57.4]}
8... Qb6 {[%clk 0:02:49.8]} 9. h4 {[%clk 0:02:46.2]} 9... h5 {[%clk 0:02:25.1]}
10. O-O-O {[%clk 0:02:41]} 10... Na6 {[%clk 0:02:22.5]} 11. g4 {[%clk
0:02:29.3]} 11... hxg4 {[%clk 0:02:15.9]} 12. h5 {[%clk 0:02:28.1]} 12... Nb4
{[%clk 0:02:15.9]} 13. Bh6 {[%clk 0:02:21.7]} 13... exd5 {[%clk 0:02:09.2]} 14.
Bxg7 {[%clk 0:02:18]} 14... Kxg7 {[%clk 0:02:09]} 15. hxg6 {[%clk 0:02:15.4]}
15... fxg6 {[%clk 0:02:09.3]} 16. exd5 {[%clk 0:02:10.8]} 16... Bf5 {[%clk
0:02:08.3]} 17. a3 {[%clk 0:02:10.1]} 17... Nc2 {[%clk 0:01:58]} 18. Bd3 {[%clk
0:02:03.9]} 18... Nd4 {[%clk 0:01:54.9]} 19. Qh6+ {[%clk 0:01:59]} 19... Kf7
{[%clk 0:01:54.1]} 20. Bxf5 {[%clk 0:01:56.6]} 20... Nxf5 {[%clk 0:01:54.3]} 21.
Qg5 {[%clk 0:01:56.7]} 21... Qb3 {[%clk 0:01:49.7]} 22. Nge2 {[%clk 0:01:55.6]}
22... Qxc4 {[%clk 0:01:45.6]} 23. Nf4 {[%clk 0:01:55.1]} 23... Rg8 {[%clk
0:01:42.2]} 24. Rde1 {[%clk 0:01:47]} 24... Nd4 {[%clk 0:01:41.3]} 25. Rh7+
{[%clk 0:01:37.2]} 1-0

[Event "*** Titled Tuesday Blitz"]
[Site "Chess.com"]
[Date "2020.05.05"]
[Round "10"]
[White "ezkybel"]
[Black "evgenyermolaev"]
[Result "1-0"]
[WhiteElo "2484"]
[BlackElo "2594"]
[TimeControl "180+1"]
[EndTime "11:56:18 PDT"]
[Termination "ezkybel won by checkmate"]

1. e4 {[%clk 0:03:00.9]} 1... c5 {[%clk 0:02:59.6]} 2. Nf3 {[%clk 0:03:01]} 2...
d6 {[%clk 0:02:59.5]} 3. d4 {[%clk 0:03:00.1]} 3... cxd4 {[%clk 0:03:00.4]} 4.
Nxd4 {[%clk 0:03:00.8]} 4... Nf6 {[%clk 0:03:00.8]} 5. Nc3 {[%clk 0:03:00.6]}
5... a6 {[%clk 0:03:01.2]} 6. h3 {[%clk 0:02:59.2]} 6... e6 {[%clk 0:03:00.8]}
7. g4 {[%clk 0:02:55.1]} 7... h6 {[%clk 0:03:00.8]} 8. Be3 {[%clk 0:02:54.5]}
8... g5 {[%clk 0:03:00]} 9. Be2 {[%clk 0:02:52.1]} 9... Nbd7 {[%clk 0:02:59.3]}
10. Qd2 {[%clk 0:02:52.2]} 10... Ne5 {[%clk 0:02:58.4]} 11. O-O-O {[%clk
0:02:50.7]} 11... Ng6 {[%clk 0:02:57.3]} 12. Kb1 {[%clk 0:02:39.9]} 12... b5
{[%clk 0:02:56.7]} 13. a3 {[%clk 0:02:36.4]} 13... Bb7 {[%clk 0:02:54.6]} 14. f3
{[%clk 0:02:33.4]} 14... d5 {[%clk 0:02:42.7]} 15. exd5 {[%clk 0:02:30.8]} 15...
Nxd5 {[%clk 0:02:42.2]} 16. Ndxb5 {[%clk 0:02:24.7]} 16... axb5 {[%clk
0:02:05.3]} 17. Bxb5+ {[%clk 0:02:14.9]} 17... Ke7 {[%clk 0:02:05.4]} 18. Nxd5+
{[%clk 0:02:13.8]} 18... Bxd5 {[%clk 0:01:24.1]} 19. c4 {[%clk 0:02:04.9]} 19...
Qa5 {[%clk 0:01:13.5]} 20. Bc5+ {[%clk 0:02:03.9]} 20... Kd8 {[%clk 0:01:01.5]}
21. Qxa5+ {[%clk 0:01:46.6]} 21... Rxa5 {[%clk 0:01:00.9]} 22. Bb6+ {[%clk
0:01:47]} 22... Ke7 {[%clk 0:00:56.8]} 23. Bxa5 {[%clk 0:01:46.3]} 23... Bxf3
{[%clk 0:00:56.9]} 24. Bd8# {[%clk 0:01:43.2]} 1-0

[Event "*** Titled Tuesday Blitz"]
[Site "Chess.com"]
[Date "2020.05.05"]
[Round "10"]
[White "manmanlai1"]
[Black "CMS13"]
[Result "1-0"]
[WhiteElo "2338"]
[BlackElo "2185"]
[TimeControl "180+1"]
[EndTime "11:56:20 PDT"]
[Termination "manmanlai1 won by checkmate"]

1. e4 {[%clk 0:03:00.9]} 1... e5 {[%clk 0:02:59.5]} 2. Nf3 {[%clk 0:02:59.6]}
2... Nc6 {[%clk 0:02:59.6]} 3. Bc4 {[%clk 0:03:00]} 3... Nf6 {[%clk 0:02:59.3]}
4. d3 {[%clk 0:03:00.2]} 4... Be7 {[%clk 0:02:59.2]} 5. O-O {[%clk 0:03:00.6]}
5... O-O {[%clk 0:02:58.4]} 6. Re1 {[%clk 0:03:00.9]} 6... d6 {[%clk 0:02:57.4]}
7. a4 {[%clk 0:03:01.4]} 7... Kh8 {[%clk 0:02:57.3]} 8. Nc3 {[%clk 0:03:00.5]}
8... Ng8 {[%clk 0:02:57.2]} 9. Nd5 {[%clk 0:03:00.2]} 9... f5 {[%clk 0:02:56.9]}
10. c3 {[%clk 0:02:57.6]} 10... Bf6 {[%clk 0:02:47.5]} 11. b4 {[%clk 0:02:55.4]}
11... Nce7 {[%clk 0:02:47.4]} 12. Nxf6 {[%clk 0:02:45.6]} 12... Nxf6 {[%clk
0:02:44.5]} 13. h3 {[%clk 0:02:45.7]} 13... Qe8 {[%clk 0:02:42.6]} 14. exf5
{[%clk 0:02:40.6]} 14... Bxf5 {[%clk 0:02:42.1]} 15. Bb3 {[%clk 0:02:24.4]}
15... Ng6 {[%clk 0:02:41.5]} 16. Bg5 {[%clk 0:02:20.4]} 16... Nh5 {[%clk
0:02:32.6]} 17. d4 {[%clk 0:02:18.4]} 17... Nhf4 {[%clk 0:02:25.2]} 18. dxe5
{[%clk 0:02:11.7]} 18... dxe5 {[%clk 0:02:24.9]} 19. h4 {[%clk 0:01:56.2]} 19...
e4 {[%clk 0:02:14.1]} 20. Nd4 {[%clk 0:01:51.8]} 20... h6 {[%clk 0:02:09.6]} 21.
Bxf4 {[%clk 0:01:46.1]} 21... Nxf4 {[%clk 0:02:09.6]} 22. Nxf5 {[%clk
0:01:45.2]} 22... Rxf5 {[%clk 0:02:09.8]} 23. Qg4 {[%clk 0:01:43.8]} 23... Rf6
{[%clk 0:01:59.3]} 24. Bc2 {[%clk 0:01:43.6]} 24... h5 {[%clk 0:01:53.1]} 25.
Qg3 {[%clk 0:01:35.4]} 25... Nxg2 {[%clk 0:01:43.5]} 26. Rxe4 {[%clk 0:01:28.8]}
26... Qf7 {[%clk 0:01:32.3]} 27. Qxg2 {[%clk 0:01:26]} 27... Rg6 {[%clk
0:01:32.1]} 28. Re8+ {[%clk 0:01:24.4]} 28... Qxe8 {[%clk 0:01:29]} 29. Qxg6
{[%clk 0:01:24.2]} 29... Qe5 {[%clk 0:01:26.8]} 30. Qh7# {[%clk 0:01:23.3]} 1-0

[Event "*** Titled Tuesday Blitz"]
[Site "Chess.com"]
[Date "2020.05.05"]
[Round "10"]
[White "realmadridtv"]
[Black "ChessTraining77"]
[Result "1-0"]
[WhiteElo "2409"]
[BlackElo "2522"]
[TimeControl "180+1"]
[EndTime "11:56:23 PDT"]
[Termination "realmadridtv won by resignation"]

1. d4 {[%clk 0:03:00.9]} 1... Nf6 {[%clk 0:02:58.2]} 2. c4 {[%clk 0:02:59.2]}
2... e6 {[%clk 0:02:58]} 3. g3 {[%clk 0:02:58.8]} 3... Bb4+ {[%clk 0:02:56.4]}
4. Nd2 {[%clk 0:02:58]} 4... c5 {[%clk 0:02:53.7]} 5. Nf3 {[%clk 0:02:50]} 5...
Nc6 {[%clk 0:02:52.7]} 6. a3 {[%clk 0:02:42.6]} 6... Bxd2+ {[%clk 0:02:51.5]} 7.
Qxd2 {[%clk 0:02:42.8]} 7... cxd4 {[%clk 0:02:50.3]} 8. Nxd4 {[%clk 0:02:42.5]}
8... d5 {[%clk 0:02:47]} 9. Nxc6 {[%clk 0:02:39.4]} 9... bxc6 {[%clk 0:02:46.4]}
10. Bg2 {[%clk 0:02:39.9]} 10... O-O {[%clk 0:02:46.1]} 11. O-O {[%clk
0:02:39.3]} 11... Rb8 {[%clk 0:02:45.8]} 12. b4 {[%clk 0:02:37.9]} 12... Ba6
{[%clk 0:02:45.3]} 13. cxd5 {[%clk 0:02:37.3]} 13... cxd5 {[%clk 0:02:44.6]} 14.
Bb2 {[%clk 0:02:37]} 14... Bc4 {[%clk 0:02:44.4]} 15. Rac1 {[%clk 0:02:27.1]}
15... Rc8 {[%clk 0:02:42.5]} 16. Rfe1 {[%clk 0:02:25.9]} 16... Qe7 {[%clk
0:02:39.9]} 17. Bd4 {[%clk 0:02:22.6]} 17... Rfd8 {[%clk 0:02:36]} 18. Bc5
{[%clk 0:02:10.7]} 18... Qe8 {[%clk 0:02:33.1]} 19. Bxa7 {[%clk 0:02:08.1]}
19... Ra8 {[%clk 0:02:30.7]} 20. Bb6 {[%clk 0:02:04.2]} 20... Rdb8 {[%clk
0:02:26.7]} 21. Rxc4 {[%clk 0:01:43.2]} 21... Rxb6 {[%clk 0:02:19.6]} 22. Rc3
{[%clk 0:01:40.6]} 22... Rba6 {[%clk 0:02:18.3]} 23. Qb2 {[%clk 0:01:35.7]}
23... h6 {[%clk 0:02:14.6]} 24. h3 {[%clk 0:01:35.2]} 24... Qb5 {[%clk
0:02:13.2]} 25. Rec1 {[%clk 0:01:31.3]} 25... Qb7 {[%clk 0:02:04.1]} 26. Kh2
{[%clk 0:01:22.7]} 26... Qa7 {[%clk 0:02:02.9]} 27. b5 {[%clk 0:01:16.9]} 27...
Rxa3 {[%clk 0:02:00.1]} 28. b6 {[%clk 0:01:15.2]} 1-0

[Event "*** Titled Tuesday Blitz"]
[Site "Chess.com"]
[Date "2020.05.05"]
[Round "10"]
[White "jonaszmb"]
[Black "CaptainTheTT"]
[Result "1-0"]
[WhiteElo "2509"]
[BlackElo "2244"]
[TimeControl "180+1"]
[EndTime "11:56:28 PDT"]
[Termination "jonaszmb won by checkmate"]

1. d4 {[%clk 0:03:00.9]} 1... d5 {[%clk 0:02:59.3]} 2. c4 {[%clk 0:03:00.9]}
2... c6 {[%clk 0:02:58.8]} 3. Nf3 {[%clk 0:03:00.6]} 3... Nf6 {[%clk 0:02:58.8]}
4. e3 {[%clk 0:03:00.5]} 4... e6 {[%clk 0:02:56.2]} 5. Nbd2 {[%clk 0:03:00.6]}
5... Be7 {[%clk 0:02:53.9]} 6. Bd3 {[%clk 0:03:00.7]} 6... O-O {[%clk
0:02:51.3]} 7. O-O {[%clk 0:03:00.8]} 7... Nbd7 {[%clk 0:02:50.2]} 8. e4 {[%clk
0:02:59.1]} 8... dxe4 {[%clk 0:02:43.9]} 9. Nxe4 {[%clk 0:03:00]} 9... b6 {[%clk
0:02:44.2]} 10. Qe2 {[%clk 0:02:48.3]} 10... Bb7 {[%clk 0:02:41.1]} 11. Bg5
{[%clk 0:02:17.7]} 11... h6 {[%clk 0:02:31.5]} 12. Bxf6 {[%clk 0:02:07.3]} 12...
Nxf6 {[%clk 0:02:28.1]} 13. Rad1 {[%clk 0:01:56]} 13... Qc7 {[%clk 0:02:16.3]}
14. c5 {[%clk 0:01:32.1]} 14... Rad8 {[%clk 0:02:09]} 15. b4 {[%clk 0:01:29]}
15... Nd5 {[%clk 0:02:03.9]} 16. a3 {[%clk 0:01:02.6]} 16... bxc5 {[%clk
0:01:55.2]} 17. Nxc5 {[%clk 0:00:56]} 17... Nc3 {[%clk 0:01:51.8]} 18. Qe3
{[%clk 0:00:33.9]} 18... Nxd1 {[%clk 0:01:51.1]} 19. Qe4 {[%clk 0:00:28.3]}
19... Bc8 {[%clk 0:01:51.6]} 20. Qh7# {[%clk 0:00:27.4]} 1-0

[Event "*** Titled Tuesday Blitz"]
[Site "Chess.com"]
[Date "2020.05.05"]
[Round "10"]
[White "mirceaparligras"]
[Black "Djager97"]
[Result "0-1"]
[WhiteElo "2614"]
[BlackElo "2491"]
[TimeControl "180+1"]
[EndTime "11:56:30 PDT"]
[Termination "Djager97 won by checkmate"]

1. e4 {[%clk 0:03:00.9]} 1... e6 {[%clk 0:02:59.7]} 2. d4 {[%clk 0:02:59.2]}
2... d5 {[%clk 0:03:00.3]} 3. Nc3 {[%clk 0:02:59.7]} 3... Nf6 {[%clk 0:03:00.3]}
4. e5 {[%clk 0:02:58.2]} 4... Nfd7 {[%clk 0:03:00]} 5. f4 {[%clk 0:02:58.8]}
5... c5 {[%clk 0:02:59.8]} 6. Nf3 {[%clk 0:02:59.4]} 6... Nc6 {[%clk 0:03:00.3]}
7. Be3 {[%clk 0:02:59.9]} 7... cxd4 {[%clk 0:02:59.5]} 8. Nxd4 {[%clk
0:02:59.5]} 8... Bc5 {[%clk 0:03:00.2]} 9. Qd2 {[%clk 0:02:59.3]} 9... O-O
{[%clk 0:03:00.3]} 10. O-O-O {[%clk 0:02:59.8]} 10... a6 {[%clk 0:03:00.6]} 11.
Kb1 {[%clk 0:02:58.5]} 11... Nxd4 {[%clk 0:03:00.4]} 12. Bxd4 {[%clk 0:02:58.4]}
12... b5 {[%clk 0:03:01.3]} 13. Qf2 {[%clk 0:02:52.1]} 13... Qc7 {[%clk
0:02:56.3]} 14. Bd3 {[%clk 0:02:43.4]} 14... b4 {[%clk 0:02:43.8]} 15. Ne2
{[%clk 0:02:39.3]} 15... Be7 {[%clk 0:02:08.8]} 16. h4 {[%clk 0:02:16.3]} 16...
a5 {[%clk 0:02:08.6]} 17. h5 {[%clk 0:02:15.8]} 17... Ba6 {[%clk 0:02:08.4]} 18.
Rh3 {[%clk 0:02:08.2]} 18... Rfc8 {[%clk 0:02:02.4]} 19. Rc1 {[%clk 0:02:06.3]}
19... a4 {[%clk 0:01:59.1]} 20. g4 {[%clk 0:01:58.4]} 20... Nc5 {[%clk
0:01:47.1]} 21. Bxa6 {[%clk 0:01:55.9]} 21... Rxa6 {[%clk 0:01:43.9]} 22. f5
{[%clk 0:01:50.3]} 22... Ne4 {[%clk 0:01:43.9]} 23. Qe3 {[%clk 0:01:39.1]} 23...
Rc6 {[%clk 0:01:43.7]} 24. f6 {[%clk 0:01:32.7]} 24... Rxc2 {[%clk 0:01:28.2]}
25. fxe7 {[%clk 0:01:24.6]} 25... Rxc1+ {[%clk 0:01:27.8]} 26. Nxc1 {[%clk
0:01:13.7]} 26... Qc2+ {[%clk 0:01:26.8]} 27. Ka1 {[%clk 0:01:14.3]} 27... Qxc1+
{[%clk 0:01:26.9]} 28. Qxc1 {[%clk 0:01:15.1]} 28... Rxc1# {[%clk 0:01:27.1]}
0-1

[Event "*** Titled Tuesday Blitz"]
[Site "Chess.com"]
[Date "2020.05.05"]
[Round "10"]
[White "Nikolaj_6"]
[Black "okriak"]
[Result "0-1"]
[WhiteElo "2632"]
[BlackElo "2807"]
[TimeControl "180+1"]
[EndTime "11:56:31 PDT"]
[Termination "okriak won by resignation"]

1. e4 {[%clk 0:03:00.9]} 1... Nc6 {[%clk 0:02:11.8]} 2. Nf3 {[%clk 0:03:00.1]}
2... e5 {[%clk 0:02:11.5]} 3. Bb5 {[%clk 0:02:59.3]} 3... a6 {[%clk 0:02:11.4]}
4. Ba4 {[%clk 0:02:59]} 4... Nf6 {[%clk 0:02:11.3]} 5. Qe2 {[%clk 0:02:58.8]}
5... b5 {[%clk 0:02:08.8]} 6. Bb3 {[%clk 0:02:59]} 6... Be7 {[%clk 0:02:09.3]}
7. a4 {[%clk 0:02:58.3]} 7... Rb8 {[%clk 0:02:08.5]} 8. axb5 {[%clk 0:02:55.6]}
8... axb5 {[%clk 0:02:08.3]} 9. d4 {[%clk 0:02:55.6]} 9... d6 {[%clk 0:02:04.7]}
10. c3 {[%clk 0:02:46.7]} 10... O-O {[%clk 0:02:03.4]} 11. d5 {[%clk 0:02:44.1]}
11... Bd7 {[%clk 0:01:34.2]} 12. dxc6 {[%clk 0:02:43.5]} 12... Bxc6 {[%clk
0:01:34.8]} 13. O-O {[%clk 0:02:43.4]} 13... Nxe4 {[%clk 0:01:33.5]} 14. Rd1
{[%clk 0:02:26.8]} 14... Qc8 {[%clk 0:01:32.7]} 15. Nbd2 {[%clk 0:02:22.9]}
15... Nf6 {[%clk 0:01:31.3]} 16. Nf1 {[%clk 0:02:21.6]} 16... Qb7 {[%clk
0:01:30.2]} 17. Ng3 {[%clk 0:02:18.2]} 17... Rfe8 {[%clk 0:01:29.9]} 18. Bg5
{[%clk 0:02:16.4]} 18... Nd5 {[%clk 0:01:23.4]} 19. Bxd5 {[%clk 0:02:11.7]}
19... Bxd5 {[%clk 0:01:20.7]} 20. Bxe7 {[%clk 0:02:11.5]} 20... Rxe7 {[%clk
0:01:21.1]} 21. Nf5 {[%clk 0:02:10.4]} 21... Re6 {[%clk 0:01:18.6]} 22. Ne3
{[%clk 0:02:08.6]} 22... Bc6 {[%clk 0:01:15.4]} 23. b4 {[%clk 0:02:03.4]} 23...
Rf6 {[%clk 0:01:08.5]} 24. Nd2 {[%clk 0:01:53.8]} 24... Rg6 {[%clk 0:01:08.3]}
25. f3 {[%clk 0:01:51.7]} 25... Rf8 {[%clk 0:01:07.3]} 26. Nb3 {[%clk
0:01:51.2]} 26... Bxf3 {[%clk 0:01:02.8]} 27. Qd3 {[%clk 0:01:39.7]} 27... Bxg2
{[%clk 0:00:59.9]} 0-1

[Event "*** Titled Tuesday Blitz"]
[Site "Chess.com"]
[Date "2020.05.05"]
[Round "10"]
[White "wanyaland"]
[Black "Maksimus1998"]
[Result "0-1"]
[WhiteElo "2322"]
[BlackElo "2470"]
[TimeControl "180+1"]
[EndTime "11:56:42 PDT"]
[Termination "Maksimus1998 won by resignation"]

1. d4 {[%clk 0:03:00.9]} 1... Nf6 {[%clk 0:02:59.2]} 2. c4 {[%clk 0:02:56.7]}
2... e6 {[%clk 0:02:58.8]} 3. Nf3 {[%clk 0:02:55.9]} 3... d5 {[%clk 0:02:58.9]}
4. g3 {[%clk 0:02:55.6]} 4... Bb4+ {[%clk 0:02:57.2]} 5. Nc3 {[%clk 0:02:54.8]}
5... dxc4 {[%clk 0:02:56.6]} 6. Qa4+ {[%clk 0:02:53.1]} 6... Nc6 {[%clk
0:02:55.9]} 7. Ne5 {[%clk 0:02:49.6]} 7... Bd7 {[%clk 0:02:52.4]} 8. Nxd7 {[%clk
0:02:45.9]} 8... Qxd7 {[%clk 0:02:51.6]} 9. Bg2 {[%clk 0:02:46.5]} 9... Nxd4
{[%clk 0:02:45.6]} 10. Qd1 {[%clk 0:02:34.6]} 10... c6 {[%clk 0:02:20.9]} 11.
O-O {[%clk 0:02:29.3]} 11... Rd8 {[%clk 0:02:20.1]} 12. e4 {[%clk 0:02:23.7]}
12... O-O {[%clk 0:02:18.2]} 13. e5 {[%clk 0:02:23.7]} 13... Ne8 {[%clk
0:02:10]} 14. Ne4 {[%clk 0:02:14.4]} 14... Qc7 {[%clk 0:02:02.8]} 15. Qh5 {[%clk
0:02:08]} 15... g6 {[%clk 0:01:44.7]} 16. Qh4 {[%clk 0:01:56.5]} 16... Be7
{[%clk 0:01:38]} 17. Bg5 {[%clk 0:01:50.8]} 17... Bxg5 {[%clk 0:01:29.9]} 18.
Qxg5 {[%clk 0:01:41]} 18... Nf5 {[%clk 0:01:22.5]} 19. g4 {[%clk 0:01:24.4]}
19... h6 {[%clk 0:01:12.8]} 20. Qh4 {[%clk 0:01:09.2]} 20... Nxh4 {[%clk
0:01:11.7]} 0-1

[Event "*** Titled Tuesday Blitz"]
[Site "Chess.com"]
[Date "2020.05.05"]
[Round "10"]
[White "Jumbo"]
[Black "Vuk2000"]
[Result "1-0"]
[WhiteElo "2865"]
[BlackElo "2637"]
[TimeControl "180+1"]
[EndTime "11:56:43 PDT"]
[Termination "Jumbo won by resignation"]

1. d4 {[%clk 0:03:00.9]} 1... Nf6 {[%clk 0:02:59.8]} 2. Bf4 {[%clk 0:02:59.8]}
2... e6 {[%clk 0:02:59.6]} 3. e3 {[%clk 0:02:59.7]} 3... d5 {[%clk 0:02:58.2]}
4. Nd2 {[%clk 0:02:58.4]} 4... Bd6 {[%clk 0:02:58.3]} 5. Bg3 {[%clk 0:02:57.8]}
5... O-O {[%clk 0:02:58.8]} 6. c4 {[%clk 0:02:58.3]} 6... b6 {[%clk 0:02:53.2]}
7. Ngf3 {[%clk 0:02:56.8]} 7... Ba6 {[%clk 0:02:45]} 8. Be2 {[%clk 0:02:55.1]}
8... c5 {[%clk 0:02:43.8]} 9. O-O {[%clk 0:02:53.5]} 9... Nc6 {[%clk 0:02:41.7]}
10. cxd5 {[%clk 0:02:47.2]} 10... Bxe2 {[%clk 0:02:40.2]} 11. Qxe2 {[%clk
0:02:48.1]} 11... Nxd5 {[%clk 0:02:35.7]} 12. dxc5 {[%clk 0:02:47.9]} 12... Bxc5
{[%clk 0:02:33.5]} 13. Rac1 {[%clk 0:02:48.4]} 13... Rc8 {[%clk 0:02:27.2]} 14.
Rfd1 {[%clk 0:02:47.8]} 14... Bd6 {[%clk 0:02:01.5]} 15. Nc4 {[%clk 0:02:34.3]}
15... Bxg3 {[%clk 0:02:00.8]} 16. hxg3 {[%clk 0:02:35.2]} 16... Qe7 {[%clk
0:01:56.2]} 17. e4 {[%clk 0:02:35.7]} 17... Nf6 {[%clk 0:01:49.7]} 18. e5 {[%clk
0:02:35.8]} 18... Nd5 {[%clk 0:01:48.5]} 19. Nd6 {[%clk 0:02:35.7]} 19... Rc7
{[%clk 0:01:48]} 20. Rc4 {[%clk 0:02:35.8]} 20... Rd8 {[%clk 0:01:29.6]} 21. Nb5
{[%clk 0:02:23.3]} 21... Rcc8 {[%clk 0:01:11.1]} 22. Rdc1 {[%clk 0:02:22.6]}
22... Qd7 {[%clk 0:01:10.3]} 23. Nd6 {[%clk 0:02:16.4]} 23... Rc7 {[%clk
0:01:09.7]} 24. Qc2 {[%clk 0:02:12.7]} 24... Nde7 {[%clk 0:00:37.4]} 25. Ng5
{[%clk 0:02:08.4]} 25... g6 {[%clk 0:00:25]} 26. Nge4 {[%clk 0:02:04.1]} 1-0